bitfinex/quotes_BTCUSD_20240831
["timestamp","ask_amount","ask_price","bid_price","bid_amount"]
[1725084962135,0.0333485,59401.0,59400.0,0.3839515]
[1725084972344,0.0333485,59401.0,59400.0,0.5053515]
[1725084973412,0.0333485,59401.0,59400.0,0.5013515]
[1725084973852,0.0333485,59401.0,59400.0,0.5153515]
[1725084974070,0.0333485,59401.0,59400.0,0.51534625]
[1725084974705,0.0333485,59401.0,59400.0,0.51034625]
[1725084975140,0.1,59404.0,59400.0,0.1502998]
[1725084975348,1.23735236,59406.0,59402.0,0.05065754]
[1725084975787,0.117835,59405.0,59402.0,0.05065754]
[1725084976670,0.117837,59404.0,59402.0,0.05065754]
[1725084977086,0.1,59403.0,59402.0,0.05965754]
[1725084978372,0.1,59403.0,59402.0,0.05065754]
[1725084978639,0.1,59403.0,59402.0,0.06065754]
[1725084978808,0.12641519,59403.0,59402.0,0.06065754]
[1725084979013,0.12641519,59403.0,59402.0,0.06165754]
[1725084979216,0.12641519,59403.0,59402.0,0.05065754]
[1725084979421,0.12641519,59403.0,59402.0,0.06165754]
[1725084979629,0.12641519,59403.0,59402.0,0.07465754]
[1725084981653,0.1,59403.0,59402.0,0.07465754]
[1725084982086,0.117835,59405.0,59402.0,0.07465754]
[1725084982288,0.1,59404.0,59402.0,0.07465754]
[1725084982991,0.1,59404.0,59402.0,0.05065754]
[1725084983425,0.1,59404.0,59402.0,0.05965754]
[1725084983669,0.1,59404.0,59402.0,0.07065754]
[1725084983817,0.1,59404.0,59402.0,0.05065754]
[1725084984033,0.1,59404.0,59402.0,0.05065741]
[1725084984216,0.1,59404.0,59402.0,0.06265741]
[1725084984919,0.12641506,59404.0,59402.0,0.06265741]
[1725084985133,0.12641506,59404.0,59402.0,0.09798612]
[1725084985337,0.1,59404.0,59402.0,0.09798612]
[1725084987028,0.1264151,59404.0,59402.0,0.09798612]
[1725084987232,0.1264151,59404.0,59402.0,0.09888592]
[1725084987448,0.1,59404.0,59402.0,0.09888592]
[1725084990586,0.12641515,59404.0,59402.0,0.09888592]
[1725084990801,0.12641515,59404.0,59402.0,0.08688592]
[1725084991011,0.12641515,59404.0,59402.0,0.10088592]
[1725084991250,0.12641515,59404.0,59402.0,0.09088592]
[1725084991649,0.24425215,59404.0,59402.0,0.10488592]
[1725084994069,0.24425215,59404.0,59402.0,0.10488549]
[1725084995056,0.12641515,59404.0,59402.0,0.10488549]
[1725084995915,1.24593451,59404.0,59402.0,0.10488563]
[1725084997298,1.21951936,59404.0,59402.0,0.10488563]
[1725084998380,1.33735636,59404.0,59402.0,0.10488563]
[1725084999071,1.21951936,59404.0,59402.0,0.10488563]
[1725084999543,1.33735636,59404.0,59402.0,0.10488563]
[1725085000704,1.36377085,59404.0,59402.0,0.10488563]
[1725085001627,0.117839,59403.0,59402.0,0.10488563]
[1725085001845,0.217839,59403.0,59402.0,0.10488563]
[1725085002555,0.217839,59403.0,59402.0,0.09088563]
[1725085003512,0.217839,59403.0,59402.0,0.07688563]
[1725085003992,0.217839,59403.0,59402.0,0.09088563]
[1725085004212,0.217839,59403.0,59402.0,0.10488685]
[1725085004644,0.2442536,59403.0,59402.0,0.10488685]
[1725085005447,0.217839,59403.0,59402.0,0.10488685]
[1725085005705,0.453517,59403.0,59402.0,0.10488685]
[1725085006242,0.47725117,59403.0,59402.0,0.10488685]
[1725085011893,0.50366574,59403.0,59402.0,0.10488685]
[1725085015719,0.47725117,59403.0,59402.0,0.10488685]
[1725085018559,0.50366566,59403.0,59402.0,0.10488685]
[1725085018764,0.15014866,59403.0,59402.0,0.47893245]
[1725085018912,0.26798766,59403.0,59402.0,0.47893245]
[1725085019116,0.24157317,59403.0,59402.0,0.47893994]
[1725085019779,0.1,59403.0,59402.0,0.52004486]
[1725085019989,1.11951936,59405.0,59403.0,0.1171]
[1725085020365,1.11951936,59405.0,59404.0,0.47536412]
[1725085020586,1.11951936,59405.0,59404.0,0.37404506]
[1725085021196,1.11951936,59405.0,59404.0,0.47532007]
[1725085021395,1.21951936,59405.0,59404.0,0.47532007]
[1725085021637,1.24593253,59405.0,59404.0,0.47532007]
[1725085022047,1.59943753,59405.0,59404.0,0.47532007]
[1725085022255,1.83510753,59405.0,59404.0,0.47532007]
[1725085022454,1.83510753,59405.0,59404.0,0.37404506]
[1725085022873,1.83510753,59405.0,59404.0,0.38804506]
[1725085023027,1.83510753,59405.0,59404.0,0.40104506]
[1725085023260,1.83510753,59405.0,59404.0,0.40101428]
[1725085027585,1.83510753,59405.0,59404.0,0.47693362]
[1725085028238,1.83510753,59405.0,59404.0,0.47693361]
[1725085028429,1.80869436,59405.0,59404.0,0.47693361]
[1725085031370,1.80869436,59405.0,59404.0,0.10291934]
[1725085031819,1.83510771,59405.0,59404.0,0.10291934]
[1725085033260,0.71558835,59405.0,59404.0,0.07760098]
[1725085034368,0.71558835,59405.0,59404.0,0.07850078]
[1725085034586,0.689175,59405.0,59404.0,0.07850078]
[1725085036138,0.689175,59405.0,59404.0,0.0278998]
[1725085036364,0.71558833,59405.0,59404.0,0.0278998]
[1725085040228,0.689175,59405.0,59404.0,0.0278998]
[1725085042370,0.50323881,59405.0,59404.0,0.0278998]
[1725085042574,0.62107381,59405.0,59404.0,0.0278998]
[1725085044504,0.72107381,59405.0,59404.0,0.0278998]
[1725085046054,0.72189181,59405.0,59404.0,0.0278998]
[1725085047547,0.72189181,59405.0,59404.0,0.1401998]
[1725085054448,0.72189181,59405.0,59404.0,0.0278998]
[1725085057679,0.72189181,59405.0,59404.0,0.10381181]
[1725085057883,0.72189181,59405.0,59404.0,0.21771181]
[1725085058098,0.72189181,59405.0,59404.0,0.51581768]
[1725085058099,0.48622181,59405.0,59404.0,0.51581768]
[1725085059192,0.48622181,59405.0,59404.0,0.6170337]
[1725085059409,0.22413848,59405.0,59404.0,0.6170337]
[1725085062824,0.2505516,59405.0,59404.0,0.6170337]
[1725085063484,0.2505516,59405.0,59404.0,0.61704238]
[1725085064625,0.2505516,59405.0,59404.0,0.51580483]
[1725085066679,0.2505516,59405.0,59404.0,0.1417998]
[1725085066894,0.2505516,59405.0,59404.0,0.51580481]
[1725085067639,0.4862216,59405.0,59404.0,0.51580481]
[1725085068513,0.4862216,59405.0,59404.0,0.51580483]
[1725085069493,0.7218916,59405.0,59404.0,0.40190483]
[1725085069702,0.7218916,59405.0,59404.0,0.5031613]
[1725085070799,0.5679444,59405.0,59404.0,0.40190483]
[1725085071023,0.59435769,59405.0,59404.0,0.40190483]
[1725085071454,0.71219269,59405.0,59404.0,0.40190483]
[1725085073407,0.71219269,59405.0,59404.0,0.40190518]
[1725085077975,0.47991829,59405.0,59404.0,0.10383501]
[1725085078749,0.71558829,59405.0,59404.0,0.10383501]
[1725085080789,0.47991829,59405.0,59404.0,0.4778404]
[1725085081988,0.12641329,59405.0,59404.0,0.4778404]
[1725085082618,0.12723129,59405.0,59404.0,0.4648404]
[1725085082858,0.12723129,59405.0,59404.0,0.4788404]
[1725085083026,0.12723129,59405.0,59404.0,0.4648404]
[1725085083676,0.12723129,59405.0,59404.0,0.4788404]
[1725085083886,0.12723129,59405.0,59404.0,0.4648404]
[1725085084119,0.12723129,59405.0,59404.0,0.4788404]
[1725085086643,0.12723129,59405.0,59404.0,0.40290519]
[1725085087200,0.12723129,59405.0,59404.0,0.40290042]
[1725085089955,0.12723129,59405.0,59404.0,0.52230042]
[1725085092084,0.12723129,59405.0,59404.0,0.52229665]
[1725085092301,0.12723129,59405.0,59404.0,0.64885433]
[1725085092302,0.02723129,59405.0,59404.0,0.64885433]
[1725085100478,0.02723129,59405.0,59404.0,0.65385433]
[1725085100737,0.02723129,59405.0,59404.0,0.52729665]
[1725085105917,0.02723129,59405.0,59404.0,0.52929665]
[1725085107297,0.02723129,59405.0,59404.0,0.52926092]
[1725085109397,0.02723129,59405.0,59404.0,0.54508886]
[1725085109657,0.02723129,59405.0,59404.0,0.52926092]
[1725085110324,0.235644,59412.0,59406.0,0.005]
[1725085110514,0.353465,59412.0,59411.0,0.07590177]
[1725085111245,0.117821,59412.0,59411.0,0.07590177]
[1725085111686,0.02266804,59413.0,59411.0,0.07590177]
[1725085112158,0.353457,59413.0,59412.0,0.002]
[1725085112381,0.453457,59413.0,59412.0,0.002]
[1725085113894,0.4798673,59413.0,59412.0,0.002]
[1725085114150,0.1264103,59413.0,59412.0,0.014]
[1725085114343,0.0264103,59413.0,59412.0,0.09190177]
[1725085114627,0.0264103,59413.0,59412.0,0.49763845]
[1725085115335,0.0264103,59413.0,59412.0,0.49563845]
[1725085115548,0.0264103,59413.0,59412.0,0.49763845]
[1725085116047,0.0264103,59413.0,59412.0,0.51163845]
[1725085116281,0.0264103,59413.0,59412.0,0.49563532]
[1725085116466,0.0264103,59413.0,59412.0,0.48163532]
[1725085116727,0.100818,59414.0,59412.0,0.50963532]
[1725085116966,0.000818,59414.0,59413.0,0.07585498]
[1725085117412,0.000818,59414.0,59412.0,0.21155498]
[1725085117625,0.000818,59414.0,59412.0,0.19755498]
[1725085117839,0.000818,59414.0,59412.0,0.18355498]
[1725085118295,0.000818,59414.0,59413.0,0.014]
[1725085119530,0.000818,59414.0,59412.0,0.19755498]
[1725085119732,0.118635,59414.0,59412.0,0.19755498]
[1725085119933,0.1,59413.0,59412.0,0.19755498]
[1725085120152,0.1,59413.0,59412.0,0.5967753]
[1725085120889,0.1,59413.0,59412.0,0.5827753]
[1725085121099,0.217819,59413.0,59412.0,0.6107753]
[1725085121557,0.217819,59413.0,59412.0,0.5967753]
[1725085122307,0.217819,59413.0,59412.0,0.59674061]
[1725085122979,0.24422744,59413.0,59412.0,0.61074061]
[1725085123647,0.24422744,59413.0,59412.0,0.50963529]
[1725085124828,0.47986544,59413.0,59412.0,0.50963529]
[1725085125686,0.24422744,59413.0,59412.0,0.50963529]
[1725085126665,0.47986544,59413.0,59412.0,0.50963529]
[1725085127273,0.47986544,59413.0,59412.0,0.51463529]
[1725085127677,0.453457,59413.0,59412.0,0.51463529]
[1725085128508,0.217819,59413.0,59412.0,0.51463529]
[1725085129947,0.453457,59413.0,59412.0,0.51463529]
[1725085130710,0.454275,59413.0,59412.0,0.51463529]
[1725085131114,0.48068344,59413.0,59412.0,0.51463529]
[1725085132297,0.48068344,59413.0,59412.0,0.40693532]
[1725085132493,0.72119497,59413.0,59412.0,0.40693532]
[1725085133701,0.48555697,59413.0,59412.0,0.40693532]
[1725085135092,0.72119497,59413.0,59412.0,0.40693532]
[1725085135532,0.71765248,59413.0,59412.0,0.40693532]
[1725085136670,0.48201448,59413.0,59412.0,0.40693532]
[1725085136845,0.45560604,59413.0,59412.0,0.50802734]
[1725085137053,0.45560604,59413.0,59412.0,0.40693532]
[1725085137283,0.45560604,59413.0,59412.0,0.40693162]
[1725085138735,0.45560604,59413.0,59412.0,0.51793162]
[1725085141536,0.48201396,59413.0,59412.0,0.51793162]
[1725085141767,0.45560604,59413.0,59412.0,0.51793162]
[1725085142883,0.21996804,59413.0,59412.0,0.51793162]
[1725085143331,0.21996804,59413.0,59412.0,0.51774264]
[1725085143556,0.21996804,59413.0,59412.0,0.51864244]
[1725085143557,0.24637584,59413.0,59412.0,0.51864244]
[1725085144231,0.24637584,59413.0,59412.0,0.6450236]
[1725085145608,0.24441094,59413.0,59412.0,0.6450236]
[1725085147231,0.24441094,59413.0,59412.0,0.51864244]
[1725085149258,0.12659194,59413.0,59412.0,0.51864244]
[1725085149513,0.03209933,59413.0,59412.0,0.51864244]
[1725085149731,0.13209933,59413.0,59412.0,0.51864244]
[1725085150854,0.03209933,59413.0,59412.0,0.51863869]
[1725085151296,0.03209933,59413.0,59412.0,0.52063869]
[1725085151515,0.03209933,59413.0,59412.0,0.51863869]
[1725085155584,0.100819,59419.0,59414.0,0.005]
[1725085155585,0.117815,59416.0,59414.0,0.005]
[1725085155807,0.09715815,59416.0,59415.0,0.47516376]
[1725085157321,0.09715815,59416.0,59415.0,0.48916376]
[1725085158652,0.09715815,59416.0,59415.0,0.50316376]
[1725085159986,0.12356512,59416.0,59415.0,0.50316376]
[1725085160189,0.22356512,59416.0,59415.0,0.50316376]
[1725085160421,0.12640697,59416.0,59415.0,0.40692787]
[1725085160819,0.12640697,59416.0,59415.0,0.40692335]
[1725085161041,0.24421997,59416.0,59415.0,0.033]
[1725085161244,0.24421997,59416.0,59415.0,0.40692335]
[1725085163054,0.24421997,59416.0,59415.0,0.53348454]
[1725085165518,0.24421997,59416.0,59415.0,0.40692335]
[1725085165927,0.217813,59416.0,59415.0,0.40692335]
[1725085168077,0.218631,59416.0,59415.0,0.40692335]
[1725085169614,0.454257,59416.0,59415.0,0.40692335]
[1725085170975,0.454257,59416.0,59415.0,0.40691134]
[1725085172225,0.48066364,59416.0,59415.0,0.40691134]
[1725085175189,0.689883,59416.0,59415.0,0.40691134]
[1725085176932,0.71628967,59416.0,59415.0,0.40691134]
[1725085177974,0.689883,59416.0,59415.0,0.40691134]
[1725085179844,0.689883,59416.0,59415.0,0.40781114]
[1725085179845,0.44799526,59416.0,59415.0,0.40781114]
[1725085180045,0.56580826,59416.0,59415.0,0.40781114]
[1725085181009,0.56580826,59416.0,59415.0,0.4078115]
[1725085181599,0.53940151,59416.0,59415.0,0.4078115]
[1725085182098,0.63940151,59416.0,59415.0,0.4078115]
[1725085183438,0.63940151,59416.0,59415.0,0.4028115]
[1725085183656,0.92447778,59416.0,59415.0,0.4028115]
[1725085185103,0.73851527,59416.0,59415.0,0.50402945]
[1725085185306,0.97414127,59416.0,59415.0,0.50402945]
[1725085186415,0.924691,59416.0,59415.0,0.50402945]
[1725085189747,0.924691,59416.0,59415.0,0.4028115]
[1725085190968,0.924691,59416.0,59415.0,0.40282795]
[1725085191601,0.9510981,59416.0,59415.0,0.40282795]
[1725085193465,0.9519161,59416.0,59415.0,0.40282795]
[1725085195990,0.9519161,59416.0,59415.0,0.40282787]
[1725085201406,0.925509,59416.0,59415.0,0.40282787]
[1725085204896,0.95192059,59416.0,59415.0,0.40282787]
[1725085205773,0.94602292,59416.0,59415.0,0.40282787]
[1725085208959,0.91961133,59416.0,59415.0,0.40282787]
[1725085209386,0.91961133,59416.0,59415.0,0.40281721]
[1725085210890,0.91961133,59416.0,59415.0,2.40281721]
[1725085211781,0.68398533,59416.0,59415.0,2.40281721]
[1725085214417,0.71039677,59416.0,59415.0,2.40281721]
[1725085215648,0.71039677,59416.0,59415.0,2.51501721]
[1725085216079,0.68398533,59416.0,59415.0,2.51501721]
[1725085217383,0.21273333,59416.0,59415.0,2.51501721]
[1725085217580,0.100818,59416.0,59415.0,2.51501721]
[1725085218112,0.000818,59416.0,59415.0,2.51501721]
[1725085219495,0.14504027,59416.0,59415.0,2.51501721]
[1725085219741,0.24504027,59416.0,59415.0,2.51501721]
[1725085220625,0.12722727,59416.0,59415.0,2.51501721]
[1725085222222,0.100818,59416.0,59415.0,2.51501721]
[1725085223955,0.12722744,59416.0,59415.0,2.51501721]
[1725085227501,0.100818,59416.0,59415.0,2.51501721]
[1725085228214,0.218631,59416.0,59415.0,2.51501721]
[1725085230202,0.100818,59416.0,59415.0,2.51501721]
[1725085230405,0.000818,59416.0,59415.0,2.51501721]
[1725085230614,0.100818,59416.0,59415.0,2.51501721]
[1725085231414,0.218631,59416.0,59415.0,2.51501721]
[1725085232662,0.100818,59416.0,59415.0,2.51501721]
[1725085232869,0.000818,59416.0,59415.0,2.51501721]
[1725085233688,0.100818,59416.0,59415.0,2.51501721]
[1725085233898,0.12722702,59416.0,59415.0,2.51501721]
[1725085234202,0.13246357,59416.0,59415.0,2.51501721]
[1725085236560,0.13246357,59416.0,59415.0,2.51500066]
[1725085239217,0.03246357,59416.0,59415.0,2.51500066]
[1725085239631,0.03246357,59416.0,59415.0,2.51500062]
[1725085243262,0.15027657,59416.0,59415.0,2.51500062]
[1725085243473,0.25027657,59416.0,59415.0,2.51500062]
[1725085244358,0.25027657,59416.0,59415.0,2.1410998]
[1725085244572,0.25027657,59416.0,59415.0,2.51500187]
[1725085246715,0.2453632,59416.0,59415.0,2.51500187]
[1725085247688,0.4809892,59416.0,59415.0,2.51500187]
[1725085249397,0.4809892,59416.0,59415.0,2.51500545]
[1725085251097,0.45867555,59416.0,59415.0,2.51500545]
[1725085251690,0.45949355,59416.0,59415.0,2.51500545]
[1725085252283,0.18738139,59416.0,59415.0,2.64155382]
[1725085252489,0.18738139,59416.0,59415.0,2.51500607]
[1725085252913,0.18738139,59416.0,59415.0,2.64155513]
[1725085253317,0.30519439,59416.0,59415.0,2.64155513]
[1725085254499,0.43160076,59416.0,59415.0,2.64155662]
[1725085255920,0.42862096,59416.0,59415.0,2.51500663]
[1725085256124,0.42862096,59416.0,59415.0,2.64155782]
[1725085258009,0.42862096,59416.0,59415.0,2.51500663]
[1725085259504,0.42862096,59416.0,59415.0,2.51500425]
[1725085259908,0.4280351,59416.0,59415.0,2.51500425]
[1725085261063,0.40162873,59416.0,59415.0,2.51500425]
[1725085263045,0.40162873,59416.0,59415.0,2.1410998]
[1725085263251,0.40162873,59416.0,59415.0,2.51500426]
[1725085263915,0.454257,59416.0,59415.0,2.51500426]
[1725085264278,0.4806634,59416.0,59415.0,2.51500426]
[1725085266147,0.47476503,59416.0,59415.0,2.51500426]
[1725085269390,0.71039103,59416.0,59415.0,2.40280426]
[1725085269591,1.29755471,59416.0,59415.0,2.40280426]
[1725085269797,1.29755471,59416.0,59415.0,2.52937865]
[1725085270008,1.29755471,59416.0,59415.0,2.40280426]
[1725085270213,1.27114831,59416.0,59415.0,2.10485114]
[1725085270440,1.27114831,59416.0,59415.0,2.0288998]
[1725085270763,1.27114831,59416.0,59415.0,2.0008998]
[1725085270977,1.29597227,59416.0,59415.0,2.0008998]
[1725085271188,1.246522,59416.0,59415.0,2.0198998]
[1725085271502,1.246522,59416.0,59415.0,2.07050134]
[1725085271709,1.246522,59416.0,59415.0,2.05150134]
[1725085271914,1.246522,59416.0,59415.0,2.06650134]
[1725085272564,1.246522,59416.0,59415.0,2.0158998]
[1725085273547,1.27293112,59416.0,59415.0,2.0158998]
[1725085275454,2.06635891,59416.0,59415.0,2.0158998]
[1725085276809,2.06717691,59416.0,59415.0,2.0158998]
[1725085279622,2.00617691,59416.0,59415.0,2.0158998]
[1725085280670,2.0007155,59416.0,59415.0,2.0158998]
[1725085283000,1.97430638,59416.0,59415.0,2.0158998]
[1725085286281,2.00071533,59416.0,59415.0,2.0158998]
[1725085291129,1.76508933,59416.0,59415.0,2.0158998]
[1725085292714,1.76508933,59416.0,59415.0,2.0078998]
[1725085292908,1.76508933,59416.0,59415.0,2.0008998]
[1725085293114,1.76508933,59416.0,59415.0,2.0148998]
[1725085293317,1.76508933,59416.0,59415.0,2.0268998]
[1725085293519,1.73868038,59416.0,59415.0,2.0268998]
[1725085296645,1.76508891,59416.0,59415.0,2.0268998]
[1725085297679,1.79015061,59416.0,59415.0,2.0268998]
[1725085305258,0.99672282,59416.0,59415.0,2.0268998]
[1725085308408,0.99672282,59416.0,59415.0,2.07743675]
[1725085308813,0.97031429,59416.0,59415.0,2.07743675]
[1725085311396,0.97031429,59416.0,59415.0,2.0268998]
[1725085311990,0.99672269,59416.0,59415.0,2.0268998]
[1725085314306,0.99672269,59416.0,59415.0,2.47666399]
[1725085315443,0.99672269,59416.0,59415.0,2.40085857]
[1725085317236,1.79015048,59416.0,59415.0,2.40085857]
[1725085323108,0.99672269,59416.0,59415.0,2.40085857]
[1725085324305,1.00274391,59416.0,59415.0,2.40085857]
[1725085325533,1.00274391,59416.0,59415.0,2.60704319]
[1725085326786,1.00274391,59416.0,59415.0,2.50575857]
[1725085327458,0.97633551,59416.0,59415.0,2.50575857]
[1725085330750,1.00274281,59416.0,59415.0,2.50575857]
[1725085333223,1.00274281,59416.0,59415.0,2.60702863]
[1725085335004,1.7961706,59416.0,59415.0,2.60702863]
[1725085336525,1.7961706,59416.0,59415.0,2.60700758]
[1725085340826,1.00274281,59416.0,59415.0,2.60700758]
[1725085349443,0.97633551,59416.0,59415.0,2.60700758]
[1725085351729,0.97633551,59416.0,59415.0,2.60700311]
[1725085352709,1.00274277,59416.0,59415.0,2.60700311]
[1725085356921,1.00274277,59416.0,59415.0,2.60700598]
[1725085361887,1.00274277,59416.0,59415.0,2.60701143]
[1725085364057,0.97633551,59416.0,59415.0,2.60701143]
[1725085364883,0.95178544,59416.0,59415.0,2.58169778]
[1725085366670,0.95178544,59416.0,59415.0,2.58169969]
[1725085367297,0.97819267,59416.0,59415.0,2.58169969]
[1725085369182,0.97819267,59416.0,59415.0,2.50574137]
[1725085373085,0.97819267,59416.0,59415.0,2.40084137]
[1725085376882,0.97819267,59416.0,59415.0,2.40084145]
[1725085380991,0.97819267,59416.0,59415.0,2.40084141]
[1725085381893,0.95178544,59416.0,59415.0,2.40084141]
[1725085385074,0.97819312,59416.0,59415.0,2.40084141]
[1725085387935,0.86494886,59416.0,59415.0,2.40084141]
[1725085388246,0.98276186,59416.0,59415.0,2.40084141]
[1725085389287,0.98267253,59416.0,59415.0,2.40084141]
[1725085390413,0.98267253,59416.0,59415.0,2.0268998]
[1725085390619,0.98267253,59416.0,59415.0,2.40083903]
[1725085395272,0.9571199,59416.0,59415.0,2.4768052]
[1725085395473,0.98133458,59416.0,59415.0,2.10286597]
[1725085396768,0.9549269,59416.0,59415.0,2.10286597]
[1725085397210,0.9557449,59416.0,59415.0,2.10286597]
[1725085398190,0.9557449,59416.0,59415.0,2.40083906]
[1725085400303,0.98215257,59416.0,59415.0,2.40083906]
[1725085400633,0.98215257,59416.0,59415.0,2.40083905]
[1725085401064,0.95793789,59416.0,59415.0,2.40083905]
[1725085401931,0.95793789,59416.0,59415.0,2.50093905]
[1725085405481,0.95793789,59416.0,59415.0,2.50093671]
[1725085406035,0.95793789,59416.0,59415.0,2.6275374]
[1725085406368,0.95793789,59416.0,59415.0,2.50093671]
[1725085407647,0.72231189,59416.0,59415.0,2.50093671]
[1725085407768,0.72231189,59416.0,59415.0,2.6275374]
[1725085410697,0.72231189,59416.0,59415.0,2.50093671]
[1725085410949,0.69590422,59416.0,59415.0,2.50093671]
[1725085411430,0.69590422,59416.0,59415.0,2.6275374]
[1725085414258,0.72799121,59416.0,59415.0,2.50093671]
[1725085415516,0.72799121,59416.0,59415.0,2.50093196]
[1725085416931,0.72799121,59416.0,59415.0,2.1269998]
[1725085417138,0.72799121,59416.0,59415.0,2.50093196]
[1725085425469,0.70158385,59416.0,59415.0,2.50093196]
[1725085425714,0.70158385,59416.0,59415.0,2.50093195]
[1725085428979,0.7279912,59416.0,59415.0,2.50093195]
[1725085437411,0.9636172,59416.0,59415.0,2.50093195]
[1725085438017,0.7279912,59416.0,59415.0,2.50093195]
[1725085440021,0.70158385,59416.0,59415.0,2.50093195]
[1725085440783,0.93720985,59416.0,59415.0,2.50093195]
[1725085441216,0.70158385,59416.0,59415.0,2.50093195]
[1725085441660,0.70158385,59416.0,59415.0,2.48693195]
[1725085441880,0.70158385,59416.0,59415.0,2.50093195]
[1725085442096,0.93720985,59416.0,59415.0,2.48893195]
[1725085442318,0.70158385,59416.0,59415.0,2.48893195]
[1725085442547,0.70158385,59416.0,59415.0,2.62950142]
[1725085443393,0.72799124,59416.0,59415.0,2.62950142]
[1725085443637,0.62197002,59416.0,59415.0,2.48893195]
[1725085443907,0.62197002,59416.0,59415.0,2.50293195]
[1725085444376,0.62197002,59416.0,59415.0,2.50293188]
[1725085445682,0.72197002,59416.0,59415.0,2.50293188]
[1725085446739,0.95759602,59416.0,59415.0,2.50293188]
[1725085447033,0.72197002,59416.0,59415.0,2.50293188]
[1725085447791,0.95759602,59416.0,59415.0,2.50293188]
[1725085451824,0.72197002,59416.0,59415.0,2.50293188]
[1725085452438,0.95759602,59416.0,59415.0,2.50293188]
[1725085452863,0.72197002,59416.0,59415.0,2.50293188]
[1725085453492,0.72197002,59416.0,59415.0,2.60420051]
[1725085453695,0.72197002,59416.0,59415.0,2.62951767]
[1725085456982,0.95759602,59416.0,59415.0,2.62951767]
[1725085458531,0.93118863,59416.0,59415.0,2.62951767]
[1725085459180,0.93118863,59416.0,59415.0,2.62955163]
[1725085461664,0.95759595,59416.0,59415.0,2.62955163]
[1725085462917,0.69252497,59416.0,59415.0,2.50293188]
[1725085463333,0.69252497,59416.0,59415.0,2.60422756]
[1725085463966,0.69252497,59416.0,59415.0,2.1289998]
[1725085464213,0.69252497,59416.0,59415.0,2.60421164]
[1725085468147,0.59765932,59416.0,59415.0,2.50292253]
[1725085468356,0.71547232,59416.0,59415.0,2.50292253]
[1725085468988,0.71547232,59416.0,59415.0,2.50292245]
[1725085469422,0.61547232,59416.0,59415.0,2.50292245]
[1725085470726,0.85109832,59416.0,59415.0,2.50292245]
[1725085472222,0.61547232,59416.0,59415.0,2.50292245]
[1725085472909,0.85109832,59416.0,59415.0,2.50292245]
[1725085473790,0.95109832,59416.0,59415.0,2.50292245]
[1725085474720,0.85109832,59416.0,59415.0,2.50292245]
[1725085476040,0.824691,59416.0,59415.0,2.50292245]
[1725085478153,0.824691,59416.0,59415.0,2.62951837]
[1725085478943,0.824691,59416.0,59415.0,2.62951756]
[1725085479375,0.85191647,59416.0,59415.0,2.62951756]
[1725085483797,0.85191647,59416.0,59415.0,2.50292245]
[1725085484206,0.85191647,59416.0,59415.0,2.48892245]
[1725085484770,0.825509,59416.0,59415.0,2.50292245]
[1725085484971,0.825509,59416.0,59415.0,2.47492245]
[1725085485397,0.825509,59416.0,59415.0,2.48892245]
[1725085485661,0.825509,59416.0,59415.0,2.50092245]
[1725085486084,0.825509,59416.0,59415.0,2.48892245]
[1725085486972,0.825509,59416.0,59415.0,2.50292245]
[1725085488116,0.85191649,59416.0,59415.0,2.50292245]
[1725085490915,0.825509,59416.0,59415.0,2.50292245]
[1725085494029,0.825509,59416.0,59415.0,2.50292247]
[1725085494248,0.85191645,59416.0,59415.0,2.50292247]
[1725085494908,0.85191645,59416.0,59415.0,2.40282247]
[1725085498742,0.825509,59416.0,59415.0,2.40283374]
[1725085501457,0.85191712,59416.0,59415.0,2.40283374]
[1725085501890,0.825509,59416.0,59415.0,2.40283374]
[1725085503678,0.825509,59416.0,59415.0,2.37483374]
[1725085503892,0.825509,59416.0,59415.0,2.40183374]
[1725085504638,0.85757577,59416.0,59415.0,2.40183374]
[1725085504845,1.09320177,59416.0,59415.0,2.40183374]
[1725085505050,0.85757577,59416.0,59415.0,2.40183374]
[1725085507453,0.85757577,59416.0,59415.0,2.40183495]
[1725085509737,0.85757577,59416.0,59415.0,2.50310624]
[1725085511559,0.83116767,59416.0,59415.0,2.50310624]
[1725085512546,0.83116767,59416.0,59415.0,2.50310655]
[1725085514842,0.85757586,59416.0,59415.0,2.50310655]
[1725085517297,0.85757586,59416.0,59415.0,2.5031041]
[1725085518449,0.83116767,59416.0,59415.0,2.5031041]
[1725085522181,0.83116767,59416.0,59415.0,2.50310356]
[1725085522614,0.85757574,59416.0,59415.0,2.50310356]
[1725085529450,0.85757574,59416.0,59415.0,2.60620356]
[1725085529683,0.85757574,59416.0,59415.0,2.5049363]
[1725085531389,0.85757574,59416.0,59415.0,2.50493154]
[1725085537708,0.85757574,59416.0,59415.0,2.1309998]
[1725085538417,0.85757574,59416.0,59415.0,2.50493154]
[1725085540208,0.85757574,59416.0,59415.0,2.1309998]
[1725085544383,0.83541596,59416.0,59415.0,2.1309998]
[1725085544822,0.83541596,59416.0,59415.0,2.50493154]
[1725085545244,0.80900789,59416.0,59415.0,2.50493154]
[1725085548265,0.57338189,59416.0,59415.0,2.50493154]
[1725085548489,0.59978937,59416.0,59415.0,2.50493154]
[1725085551268,0.57338189,59416.0,59415.0,2.50493154]
[1725085554435,0.59978941,59416.0,59415.0,2.50493154]
[1725085555543,0.57338189,59416.0,59415.0,2.50493154]
[1725085557880,0.57338189,59416.0,59415.0,2.50492859]
[1725085560739,0.59978944,59416.0,59415.0,2.50492859]
[1725085564519,0.83541544,59416.0,59415.0,2.50492859]
[1725085564935,0.83541544,59416.0,59415.0,2.606216]
[1725085565150,0.83541544,59416.0,59415.0,2.503116]
[1725085566646,0.83541544,59416.0,59415.0,2.50312339]
[1725085567290,0.93541544,59416.0,59415.0,2.50312339]
[1725085567510,1.8922667,59416.0,59415.0,1.43779201]
[1725085567789,2.16848697,59416.0,59415.0,1.38714795]
[1725085568021,2.1190367,59416.0,59415.0,1.38714795]
[1725085568254,2.1190367,59416.0,59415.0,1.37314795]
[1725085568466,2.1190367,59416.0,59415.0,1.36014795]
[1725085569125,2.1190367,59416.0,59415.0,1.36814795]
[1725085569335,2.1190367,59416.0,59415.0,1.36014795]
[1725085569549,2.02508921,59416.0,59415.0,1.36014795]
[1725085569762,2.03663527,59416.0,59415.0,1.36714795]
[1725085570224,2.03663527,59416.0,59415.0,1.36014795]
[1725085570470,2.02951132,59416.0,59415.0,1.36014795]
[1725085570687,2.03051132,59416.0,59415.0,1.36014795]
[1725085573401,2.03051132,59416.0,59415.0,1.36104775]
[1725085575500,1.79488532,59416.0,59415.0,1.36104775]
[1725085575730,1.51025306,59416.0,59415.0,1.36104775]
[1725085575969,0.94612501,59416.0,59415.0,1.45814775]
[1725085576184,0.03488422,59416.0,59415.0,1.57596275]
[1725085576405,0.03288422,59416.0,59415.0,1.45814775]
[1725085577086,0.00747667,59416.0,59415.0,1.45814775]
[1725085577542,0.00647667,59416.0,59415.0,1.45814775]
[1725085577775,0.00747667,59416.0,59415.0,1.46214775]
[1725085578694,0.00647667,59416.0,59415.0,1.46214775]
[1725085578915,0.00647667,59416.0,59415.0,1.46714775]